[Event "*** SCC Grand Prix: Titled Tuesday Blitz"]
[Site "Chess.com"]
[Date "2020.09.08"]
[Round "6"]
[White "Mbneu"]
[Black "KarstenHansch"]
[Result "0-1"]
[WhiteElo "2269"]
[BlackElo "2477"]
[TimeControl "180+1"]
[EndTime "11:02:15 PDT"]
[Termination "KarstenHansch won by resignation"]

1. d4 {[%clk 0:03:00.9]} 1... d5 {[%clk 0:02:59.4]} 2. c4 {[%clk 0:03:01.3]}
2... e6 {[%clk 0:03:00]} 3. Nc3 {[%clk 0:03:00.7]} 3... Nf6 {[%clk 0:03:00.9]}
4. Nf3 {[%clk 0:03:00.7]} 4... Be7 {[%clk 0:03:00.5]} 5. g3 {[%clk 0:03:00.6]}
5... O-O {[%clk 0:02:55.9]} 6. Bg2 {[%clk 0:03:00.9]} 6... dxc4 {[%clk 0:02:56]}
7. Ne5 {[%clk 0:03:00.4]} 7... Nc6 {[%clk 0:02:55.5]} 8. Bxc6 {[%clk 0:03:00.3]}
8... bxc6 {[%clk 0:02:55.7]} 9. Nxc6 {[%clk 0:03:00.6]} 9... Qe8 {[%clk
0:02:56.1]} 10. Nxe7+ {[%clk 0:03:01.2]} 10... Qxe7 {[%clk 0:02:56.3]} 11. Qa4
{[%clk 0:03:01.1]} 11... c5 {[%clk 0:02:52.9]} 12. dxc5 {[%clk 0:02:58]} 12...
Qxc5 {[%clk 0:02:50.8]} 13. Be3 {[%clk 0:02:54.5]} 13... Qc7 {[%clk 0:02:50.5]}
14. f3 {[%clk 0:02:48.2]} 14... Rd8 {[%clk 0:02:48.5]} 15. O-O {[%clk
0:02:39.3]} 15... Nd5 {[%clk 0:02:47.4]} 16. Nxd5 {[%clk 0:02:38.5]} 16... exd5
{[%clk 0:02:44.8]} 17. Bd4 {[%clk 0:02:37.3]} 17... Be6 {[%clk 0:02:40.6]} 18.
Kg2 {[%clk 0:02:25.3]} 18... Qd7 {[%clk 0:02:37.8]} 19. g4 {[%clk 0:02:24.1]}
19... Qxa4 {[%clk 0:02:36.9]} 0-1

[Event "*** SCC Grand Prix: Titled Tuesday Blitz"]
[Site "Chess.com"]
[Date "2020.09.08"]
[Round "6"]
[White "KubaGepard"]
[Black "jucAxx"]
[Result "1-0"]
[WhiteElo "2393"]
[BlackElo "2068"]
[TimeControl "180+1"]
[EndTime "11:02:21 PDT"]
[Termination "KubaGepard won by resignation"]

1. d4 {[%clk 0:03:00.9]} 1... f5 {[%clk 0:02:57]} 2. Nf3 {[%clk 0:02:59.7]} 2...
Nf6 {[%clk 0:02:57.2]} 3. g3 {[%clk 0:03:00.3]} 3... d6 {[%clk 0:02:57.7]} 4.
Bg2 {[%clk 0:03:00]} 4... c6 {[%clk 0:02:58.3]} 5. Nc3 {[%clk 0:02:59.4]} 5...
Qc7 {[%clk 0:02:58.6]} 6. O-O {[%clk 0:02:58.8]} 6... e5 {[%clk 0:02:58.9]} 7.
dxe5 {[%clk 0:02:58.7]} 7... dxe5 {[%clk 0:02:59.8]} 8. e4 {[%clk 0:02:57.7]}
8... fxe4 {[%clk 0:02:59.9]} 9. Ng5 {[%clk 0:02:56]} 9... Bg4 {[%clk 0:03:00]}
10. Qe1 {[%clk 0:02:54.3]} 10... Bf5 {[%clk 0:02:59.8]} 11. Ngxe4 {[%clk
0:02:52.9]} 11... Nbd7 {[%clk 0:02:58.6]} 12. Nxf6+ {[%clk 0:02:48.6]} 12...
Nxf6 {[%clk 0:02:59.5]} 13. Bf4 {[%clk 0:02:46]} 13... Bd6 {[%clk 0:02:57.1]}
14. Bxe5 {[%clk 0:02:40.8]} 14... Bxe5 {[%clk 0:02:57]} 15. f4 {[%clk
0:02:40.9]} 15... O-O-O {[%clk 0:02:57]} 16. fxe5 {[%clk 0:02:39.6]} 16... Ng4
{[%clk 0:02:53.7]} 17. Rxf5 {[%clk 0:02:36]} 17... Qb6+ {[%clk 0:02:49.6]} 18.
Kh1 {[%clk 0:02:35.3]} 18... Rhf8 {[%clk 0:02:49.2]} 19. Rxf8 {[%clk 0:02:34.1]}
19... Rxf8 {[%clk 0:02:49.8]} 20. Ne4 {[%clk 0:02:34.3]} 20... Qxb2 {[%clk
0:02:48.2]} 21. Rb1 {[%clk 0:02:33.4]} 21... Qxe5 {[%clk 0:02:47.2]} 22. Qb4
{[%clk 0:02:24.8]} 22... Rf7 {[%clk 0:02:44.4]} 23. Nd6+ {[%clk 0:02:22.3]} 1-0

[Event "*** SCC Grand Prix: Titled Tuesday Blitz"]
[Site "Chess.com"]
[Date "2020.09.08"]
[Round "6"]
[White "KiranManisha"]
[Black "pastouche06"]
[Result "1-0"]
[WhiteElo "2294"]
[BlackElo "2485"]
[TimeControl "180+1"]
[EndTime "11:02:48 PDT"]
[Termination "KiranManisha won by resignation"]

1. e4 {[%clk 0:03:00.9]} 1... c6 {[%clk 0:02:57.1]} 2. d4 {[%clk 0:02:58.7]}
2... d5 {[%clk 0:02:58]} 3. e5 {[%clk 0:02:58.5]} 3... Bf5 {[%clk 0:02:57.8]} 4.
h4 {[%clk 0:02:58.4]} 4... h5 {[%clk 0:02:57.6]} 5. c4 {[%clk 0:02:58]} 5... e6
{[%clk 0:02:57.6]} 6. Nc3 {[%clk 0:02:58.6]} 6... Ne7 {[%clk 0:02:57.2]} 7. Nge2
{[%clk 0:02:59.1]} 7... Bg4 {[%clk 0:02:56.5]} 8. f3 {[%clk 0:02:58.6]} 8... Bf5
{[%clk 0:02:56.4]} 9. Ng3 {[%clk 0:02:58]} 9... Bg6 {[%clk 0:02:56.4]} 10. Bg5
{[%clk 0:02:58.1]} 10... Qb6 {[%clk 0:02:50.9]} 11. Qb3 {[%clk 0:02:57.1]} 11...
dxc4 {[%clk 0:02:40.9]} 12. Bxc4 {[%clk 0:02:56]} 12... Nd7 {[%clk 0:02:37.5]}
13. Nge4 {[%clk 0:02:51.7]} 13... Nf5 {[%clk 0:02:35.6]} 14. O-O-O {[%clk
0:02:49.6]} 14... Nxd4 {[%clk 0:01:47.6]} 15. Qxb6 {[%clk 0:02:40.1]} 15... Nxb6
{[%clk 0:01:48.5]} 16. Rxd4 {[%clk 0:02:39.1]} 16... Bc5 {[%clk 0:01:49.1]} 17.
Nxc5 {[%clk 0:02:38.3]} 1-0

[Event "*** SCC Grand Prix: Titled Tuesday Blitz"]
[Site "Chess.com"]
[Date "2020.09.08"]
[Round "6"]
[White "enriquebutti"]
[Black "Hard_Utilizator"]
[Result "1-0"]
[WhiteElo "1842"]
[BlackElo "2321"]
[TimeControl "180+1"]
[EndTime "11:02:53 PDT"]
[Termination "enriquebutti won by resignation"]

1. d4 {[%clk 0:02:58.9]} 1... d5 {[%clk 0:02:00.1]} 2. c4 {[%clk 0:02:53.6]}
2... e6 {[%clk 0:02:00.3]} 3. Nf3 {[%clk 0:02:52.4]} 3... Nf6 {[%clk 0:02:00.7]}
4. e3 {[%clk 0:02:52.1]} 4... c6 {[%clk 0:02:01]} 5. Bd3 {[%clk 0:02:51.2]} 5...
Nbd7 {[%clk 0:01:59.4]} 6. O-O {[%clk 0:02:50.6]} 6... Bd6 {[%clk 0:01:59.1]} 7.
Nc3 {[%clk 0:02:49.6]} 7... O-O {[%clk 0:01:59.5]} 8. e4 {[%clk 0:02:49.5]} 8...
dxc4 {[%clk 0:01:59.5]} 9. Bxc4 {[%clk 0:02:49.4]} 9... e5 {[%clk 0:02:00.2]}
10. Bg5 {[%clk 0:02:45.1]} 10... h6 {[%clk 0:01:56.5]} 11. Bh4 {[%clk
0:02:44.5]} 11... exd4 {[%clk 0:01:51.4]} 12. Qxd4 {[%clk 0:02:43.2]} 12... Re8
{[%clk 0:01:43.5]} 13. Qxd6 {[%clk 0:02:40]} 1-0

[Event "*** SCC Grand Prix: Titled Tuesday Blitz"]
[Site "Chess.com"]
[Date "2020.09.08"]
[Round "6"]
[White "Quiet_Desperation"]
[Black "mapleaff"]
[Result "0-1"]
[WhiteElo "2003"]
[BlackElo "2381"]
[TimeControl "180+1"]
[EndTime "11:03:38 PDT"]
[Termination "mapleaff won by resignation"]

1. e4 {[%clk 0:03:00.9]} 1... e5 {[%clk 0:02:59.6]} 2. Nf3 {[%clk 0:03:01.2]}
2... Nc6 {[%clk 0:02:59.4]} 3. Bb5 {[%clk 0:03:01.8]} 3... Nf6 {[%clk
0:02:59.4]} 4. d3 {[%clk 0:03:01.4]} 4... Bc5 {[%clk 0:02:57.9]} 5. O-O {[%clk
0:03:00.9]} 5... Nd4 {[%clk 0:02:56.9]} 6. Nxd4 {[%clk 0:03:00.6]} 6... Bxd4
{[%clk 0:02:57.8]} 7. c3 {[%clk 0:03:00.6]} 7... Bb6 {[%clk 0:02:58.4]} 8. Kh1
{[%clk 0:02:40]} 8... c6 {[%clk 0:02:56.4]} 9. Ba4 {[%clk 0:02:39.3]} 9... d6
{[%clk 0:02:56.7]} 10. h3 {[%clk 0:02:38.8]} 10... h6 {[%clk 0:02:54.9]} 11. Bb3
{[%clk 0:02:35.6]} 11... O-O {[%clk 0:02:53.8]} 12. f4 {[%clk 0:02:32.8]} 12...
Be6 {[%clk 0:02:43.3]} 13. f5 {[%clk 0:02:22.4]} 13... Bxb3 {[%clk 0:02:41.6]}
14. axb3 {[%clk 0:02:23.3]} 14... d5 {[%clk 0:02:41.2]} 15. Qe2 {[%clk
0:02:21.1]} 15... dxe4 {[%clk 0:02:39.6]} 16. dxe4 {[%clk 0:02:20.8]} 16... Qe7
{[%clk 0:02:34.2]} 17. g4 {[%clk 0:02:19.4]} 17... Nh7 {[%clk 0:02:31.5]} 18.
Nd2 {[%clk 0:02:16.7]} 18... Rad8 {[%clk 0:02:26.7]} 19. Nf3 {[%clk 0:02:16.7]}
19... Rd7 {[%clk 0:02:17.7]} 20. Be3 {[%clk 0:02:16.2]} 20... Rfd8 {[%clk
0:02:15.7]} 21. Rg1 {[%clk 0:02:08.2]} 21... Bxe3 {[%clk 0:01:55.5]} 22. Qxe3
{[%clk 0:02:06.7]} 22... Rd3 {[%clk 0:01:56.4]} 23. Qe2 {[%clk 0:02:02.3]} 23...
Ng5 {[%clk 0:01:55.5]} 24. Nxg5 {[%clk 0:02:02]} 24... Qxg5 {[%clk 0:01:53.8]}
25. Qg2 {[%clk 0:01:58.7]} 25... Qh4 {[%clk 0:01:51.6]} 26. Kh2 {[%clk
0:01:57.7]} 0-1

[Event "*** SCC Grand Prix: Titled Tuesday Blitz"]
[Site "Chess.com"]
[Date "2020.09.08"]
[Round "6"]
[White "RestartingChess"]
[Black "northridgehawk"]
[Result "1-0"]
[WhiteElo "2431"]
[BlackElo "2307"]
[TimeControl "180+1"]
[EndTime "11:03:40 PDT"]
[Termination "RestartingChess won by checkmate"]

1. e4 {[%clk 0:03:00.9]} 1... e5 {[%clk 0:02:55.9]} 2. Nf3 {[%clk 0:03:01.3]}
2... Nc6 {[%clk 0:02:39.3]} 3. Bc4 {[%clk 0:03:01.6]} 3... Nf6 {[%clk 0:02:37]}
4. d3 {[%clk 0:03:01.9]} 4... Bc5 {[%clk 0:02:30.9]} 5. h3 {[%clk 0:03:02.4]}
5... d6 {[%clk 0:02:24.8]} 6. Bg5 {[%clk 0:03:02.5]} 6... h6 {[%clk 0:02:23.4]}
7. Bxf6 {[%clk 0:03:01]} 7... Qxf6 {[%clk 0:02:24.3]} 8. Nc3 {[%clk 0:03:01]}
8... Be6 {[%clk 0:02:23.8]} 9. Nd5 {[%clk 0:02:56.9]} 9... Qd8 {[%clk 0:02:23]}
10. a3 {[%clk 0:02:56.2]} 10... Nd4 {[%clk 0:02:21.8]} 11. b4 {[%clk 0:02:52.6]}
11... Bb6 {[%clk 0:02:21.3]} 12. Nxb6 {[%clk 0:02:52.9]} 12... axb6 {[%clk
0:02:21.8]} 13. Nxd4 {[%clk 0:02:53.4]} 13... exd4 {[%clk 0:02:20.2]} 14. Bxe6
{[%clk 0:02:53.9]} 14... fxe6 {[%clk 0:02:20.5]} 15. Qh5+ {[%clk 0:02:54.6]}
15... Kd7 {[%clk 0:02:18.6]} 16. O-O {[%clk 0:02:48.6]} 16... Rf8 {[%clk
0:02:14.2]} 17. f4 {[%clk 0:02:48]} 17... c6 {[%clk 0:02:12.1]} 18. f5 {[%clk
0:02:47.3]} 18... e5 {[%clk 0:02:08.1]} 19. Qg4 {[%clk 0:02:47.4]} 19... Rf7
{[%clk 0:02:01.1]} 20. f6+ {[%clk 0:02:45.4]} 20... Kc7 {[%clk 0:02:00.8]} 21.
fxg7 {[%clk 0:02:45.7]} 21... Qg8 {[%clk 0:01:54.4]} 22. Rxf7+ {[%clk 0:02:43]}
22... Qxf7 {[%clk 0:01:54.1]} 23. Rf1 {[%clk 0:02:43.7]} 23... Qg8 {[%clk
0:01:54.6]} 24. Qg6 {[%clk 0:02:43.4]} 24... b5 {[%clk 0:01:52.5]} 25. Rf7+
{[%clk 0:02:39.7]} 25... Kb6 {[%clk 0:01:52]} 26. Rd7 {[%clk 0:02:27.9]} 26...
h5 {[%clk 0:01:42.8]} 27. Qxd6 {[%clk 0:02:24.8]} 27... Rxa3 {[%clk 0:01:31]}
28. Qc7+ {[%clk 0:02:22.3]} 28... Ka6 {[%clk 0:01:30.2]} 29. Qxb7# {[%clk
0:02:23.2]} 1-0

[Event "*** SCC Grand Prix: Titled Tuesday Blitz"]
[Site "Chess.com"]
[Date "2020.09.08"]
[Round "6"]
[White "MPGM"]
[Black "vinniethepooh"]
[Result "0-1"]
[WhiteElo "2475"]
[BlackElo "2657"]
[TimeControl "180+1"]
[EndTime "11:03:48 PDT"]
[Termination "vinniethepooh won by resignation"]

1. d4 {[%clk 0:03:00.9]} 1... Nf6 {[%clk 0:02:58.9]} 2. c4 {[%clk 0:02:59.1]}
2... b6 {[%clk 0:02:56.7]} 3. f3 {[%clk 0:02:56.8]} 3... Nc6 {[%clk 0:02:50.7]}
4. e4 {[%clk 0:02:55.2]} 4... e5 {[%clk 0:02:50.9]} 5. dxe5 {[%clk 0:02:48.8]}
5... Nxe5 {[%clk 0:02:48.6]} 6. Nc3 {[%clk 0:02:48.9]} 6... Bc5 {[%clk
0:02:39.5]} 7. Bg5 {[%clk 0:02:37.4]} 7... Ba6 {[%clk 0:02:26.5]} 8. Nd5 {[%clk
0:02:17.5]} 8... Nxe4 {[%clk 0:02:00.6]} 9. Bxd8 {[%clk 0:01:55.6]} 9... Bf2+
{[%clk 0:01:55.4]} 10. Ke2 {[%clk 0:01:52.1]} 10... Bxc4+ {[%clk 0:01:55.7]} 11.
Qd3 {[%clk 0:01:50.8]} 11... Bxd3+ {[%clk 0:01:55.8]} 12. Kd1 {[%clk 0:01:48.5]}
12... Bxf1 {[%clk 0:01:49.6]} 13. Nxc7+ {[%clk 0:01:45.4]} 13... Kxd8 {[%clk
0:01:48.7]} 14. Nxa8 {[%clk 0:01:45.8]} 14... Bxg2 {[%clk 0:01:47]} 15. fxe4
{[%clk 0:01:43]} 15... Bxh1 {[%clk 0:01:46.2]} 16. Nh3 {[%clk 0:01:41.5]} 0-1

[Event "*** SCC Grand Prix: Titled Tuesday Blitz"]
[Site "Chess.com"]
[Date "2020.09.08"]
[Round "6"]
[White "GaboSalazar2001"]
[Black "TrickyFortem"]
[Result "1-0"]
[WhiteElo "2352"]
[BlackElo "2442"]
[TimeControl "180+1"]
[EndTime "11:04:08 PDT"]
[Termination "GaboSalazar2001 won by resignation"]

1. e4 {[%clk 0:03:00.9]} 1... c5 {[%clk 0:02:52.5]} 2. Nf3 {[%clk 0:03:01.1]}
2... d6 {[%clk 0:02:52.9]} 3. d4 {[%clk 0:03:01.6]} 3... cxd4 {[%clk 0:02:53.8]}
4. Nxd4 {[%clk 0:03:02.4]} 4... Nf6 {[%clk 0:02:54.3]} 5. Nc3 {[%clk 0:03:03]}
5... a6 {[%clk 0:02:54.8]} 6. Be3 {[%clk 0:03:03.1]} 6... e5 {[%clk 0:02:55.2]}
7. Nb3 {[%clk 0:03:03.6]} 7... Be6 {[%clk 0:02:55.6]} 8. h3 {[%clk 0:03:04.3]}
8... Be7 {[%clk 0:02:55.7]} 9. Qf3 {[%clk 0:03:04.9]} 9... Nc6 {[%clk 0:02:54]}
10. g4 {[%clk 0:03:00]} 10... b5 {[%clk 0:02:53.8]} 11. O-O-O {[%clk 0:02:55]}
11... b4 {[%clk 0:02:45.6]} 12. Nd5 {[%clk 0:02:54.1]} 12... Bxd5 {[%clk
0:02:44.4]} 13. exd5 {[%clk 0:02:54.4]} 13... Na5 {[%clk 0:02:43.8]} 14. g5
{[%clk 0:02:36.7]} 14... Nd7 {[%clk 0:02:43.4]} 15. h4 {[%clk 0:02:32.9]} 15...
Nxb3+ {[%clk 0:02:36]} 16. cxb3 {[%clk 0:02:31.4]} 16... O-O {[%clk 0:02:36.1]}
17. Bd3 {[%clk 0:02:30.7]} 17... f5 {[%clk 0:02:34.2]} 18. Bxf5 {[%clk
0:02:22.3]} 18... Kh8 {[%clk 0:02:33.4]} 19. Qe4 {[%clk 0:01:52.7]} 19... g6
{[%clk 0:02:19.4]} 20. Be6 {[%clk 0:01:47.7]} 20... Nc5 {[%clk 0:01:47.7]} 21.
Bxc5 {[%clk 0:01:46.4]} 21... Rf4 {[%clk 0:01:48.1]} 22. Qxf4 {[%clk 0:01:28.6]}
22... exf4 {[%clk 0:01:48.1]} 23. Bd4+ {[%clk 0:01:28.5]} 23... Bf6 {[%clk
0:01:48.4]} 24. Bxf6+ {[%clk 0:01:28.6]} 24... Qxf6 {[%clk 0:01:47.9]} 25. gxf6
{[%clk 0:01:29.5]} 1-0

[Event "*** SCC Grand Prix: Titled Tuesday Blitz"]
[Site "Chess.com"]
[Date "2020.09.08"]
[Round "6"]
[White "geordie_derraugh"]
[Black "RamyresCoelho"]
[Result "1-0"]
[WhiteElo "2386"]
[BlackElo "1799"]
[TimeControl "180+1"]
[EndTime "11:04:17 PDT"]
[Termination "geordie_derraugh won by resignation"]

1. e4 {[%clk 0:03:00.9]} 1... c5 {[%clk 0:02:59.9]} 2. Nf3 {[%clk 0:02:59.9]}
2... d6 {[%clk 0:02:59.6]} 3. Bb5+ {[%clk 0:02:59.5]} 3... Nd7 {[%clk
0:02:59.5]} 4. d4 {[%clk 0:02:59.8]} 4... cxd4 {[%clk 0:02:59.2]} 5. Qxd4 {[%clk
0:03:00.7]} 5... a6 {[%clk 0:02:51.5]} 6. Bxd7+ {[%clk 0:03:00.8]} 6... Bxd7
{[%clk 0:02:52.4]} 7. c4 {[%clk 0:03:01]} 7... e5 {[%clk 0:02:51.7]} 8. Qd3
{[%clk 0:03:01.2]} 8... h6 {[%clk 0:02:50.3]} 9. Nc3 {[%clk 0:03:01.3]} 9... Nf6
{[%clk 0:02:23.8]} 10. O-O {[%clk 0:03:01.4]} 10... Be7 {[%clk 0:02:23.3]} 11.
Rd1 {[%clk 0:02:54.5]} 11... O-O {[%clk 0:02:22]} 12. b3 {[%clk 0:02:53.5]}
12... Rb8 {[%clk 0:02:22]} 13. a4 {[%clk 0:02:53.3]} 13... Qc7 {[%clk
0:02:20.8]} 14. Be3 {[%clk 0:02:51.9]} 14... Ng4 {[%clk 0:02:19.4]} 15. Nd5
{[%clk 0:02:49.6]} 15... Qd8 {[%clk 0:02:19.4]} 16. Bb6 {[%clk 0:02:49.3]} 16...
Qe8 {[%clk 0:02:12.7]} 17. Bc7 {[%clk 0:02:43.8]} 17... Rc8 {[%clk 0:02:10.4]}
18. Nxe7+ {[%clk 0:02:43.9]} 18... Qxe7 {[%clk 0:02:09.6]} 19. Bxd6 {[%clk
0:02:44.2]} 19... Qe6 {[%clk 0:02:05.9]} 20. Bxf8 {[%clk 0:02:43.8]} 20... Rxf8
{[%clk 0:02:05]} 21. Qxd7 {[%clk 0:02:43.5]} 21... Qg6 {[%clk 0:02:04.1]} 22.
Qf5 {[%clk 0:02:37.6]} 22... Qxf5 {[%clk 0:01:55.3]} 23. exf5 {[%clk 0:02:37.5]}
23... Nf6 {[%clk 0:01:56.2]} 24. Nxe5 {[%clk 0:02:37.1]} 24... Ne4 {[%clk
0:01:55.6]} 25. Rd7 {[%clk 0:02:32.2]} 25... b5 {[%clk 0:01:52.1]} 26. axb5
{[%clk 0:02:31.3]} 26... axb5 {[%clk 0:01:53]} 27. cxb5 {[%clk 0:02:29.4]} 27...
Rb8 {[%clk 0:01:52.3]} 28. f3 {[%clk 0:02:19.3]} 28... Nc3 {[%clk 0:01:49.7]}
29. Rxf7 {[%clk 0:02:18.3]} 29... Rxb5 {[%clk 0:01:48]} 30. Ra8+ {[%clk
0:02:17.2]} 30... Kh7 {[%clk 0:01:47.4]} 31. Ng6 {[%clk 0:02:17.3]} 31... Ne2+
{[%clk 0:01:43.2]} 32. Kf2 {[%clk 0:02:17.3]} 32... Rxf5 {[%clk 0:01:37.8]} 33.
Rxf5 {[%clk 0:02:17.3]} 33... Nd4 {[%clk 0:01:34.6]} 34. Nf8+ {[%clk 0:02:15.5]}
34... Kg8 {[%clk 0:01:33.8]} 35. Ne6+ {[%clk 0:02:15.1]} 35... Kh7 {[%clk
0:01:33.3]} 36. Nxd4 {[%clk 0:02:15]} 1-0

[Event "*** SCC Grand Prix: Titled Tuesday Blitz"]
[Site "Chess.com"]
[Date "2020.09.08"]
[Round "6"]
[White "ChessWarrior3"]
[Black "Synctel"]
[Result "0-1"]
[WhiteElo "2128"]
[BlackElo "1992"]
[TimeControl "180+1"]
[EndTime "11:04:25 PDT"]
[Termination "Synctel won by checkmate"]

1. e4 {[%clk 0:03:00.9]} 1... e6 {[%clk 0:02:59.1]} 2. d4 {[%clk 0:03:00.5]}
2... d5 {[%clk 0:02:53]} 3. Nc3 {[%clk 0:03:00.9]} 3... Nf6 {[%clk 0:02:52.2]}
4. e5 {[%clk 0:03:00.6]} 4... Nfd7 {[%clk 0:02:46.6]} 5. f4 {[%clk 0:03:00.9]}
5... c5 {[%clk 0:02:47.1]} 6. Nf3 {[%clk 0:03:01.1]} 6... Nc6 {[%clk 0:02:47.4]}
7. Be3 {[%clk 0:03:00.4]} 7... a6 {[%clk 0:02:46.8]} 8. Qd2 {[%clk 0:02:57.9]}
8... b5 {[%clk 0:02:46.9]} 9. dxc5 {[%clk 0:02:58.1]} 9... Bxc5 {[%clk
0:02:46.1]} 10. O-O-O {[%clk 0:02:58.7]} 10... Bb7 {[%clk 0:02:45.1]} 11. Bd3
{[%clk 0:02:50.3]} 11... d4 {[%clk 0:02:35.9]} 12. Nxd4 {[%clk 0:02:47.6]} 12...
Nxd4 {[%clk 0:02:27.1]} 13. Ne4 {[%clk 0:02:42.7]} 13... O-O {[%clk 0:01:43.3]}
14. Nxc5 {[%clk 0:02:22.7]} 14... Nxc5 {[%clk 0:01:38.8]} 15. Bxd4 {[%clk
0:02:22.7]} 15... Nxd3+ {[%clk 0:01:34]} 16. Qxd3 {[%clk 0:02:22.5]} 16... Qd5
{[%clk 0:01:15.3]} 17. g4 {[%clk 0:02:07.7]} 17... Qxa2 {[%clk 0:01:11.7]} 18.
b3 {[%clk 0:02:07.4]} 18... Rfd8 {[%clk 0:01:08.2]} 19. Rhg1 {[%clk 0:02:05.3]}
19... Rac8 {[%clk 0:01:03.4]} 20. f5 {[%clk 0:02:01.2]} 20... Rxd4 {[%clk
0:01:02.5]} 21. Qe2 {[%clk 0:01:50.4]} 21... Qa1# {[%clk 0:00:59.2]} 0-1

[Event "*** SCC Grand Prix: Titled Tuesday Blitz"]
[Site "Chess.com"]
[Date "2020.09.08"]
[Round "6"]
[White "VojtechPlat"]
[Black "PattyCastillo"]
[Result "1-0"]
[WhiteElo "2831"]
[BlackElo "1913"]
[TimeControl "180+1"]
[EndTime "11:04:40 PDT"]
[Termination "VojtechPlat won by checkmate"]

1. e4 {[%clk 0:02:22.9]} 1... c5 {[%clk 0:02:58.9]} 2. Nf3 {[%clk 0:02:22.6]}
2... d6 {[%clk 0:02:59.3]} 3. c3 {[%clk 0:02:22.4]} 3... Nf6 {[%clk 0:02:59.2]}
4. Bc4 {[%clk 0:02:22.6]} 4... Nbd7 {[%clk 0:02:59.4]} 5. Qe2 {[%clk 0:02:22.6]}
5... e6 {[%clk 0:03:00]} 6. d4 {[%clk 0:02:22.7]} 6... Be7 {[%clk 0:02:58.8]} 7.
e5 {[%clk 0:02:21.5]} 7... dxe5 {[%clk 0:02:56.7]} 8. dxe5 {[%clk 0:02:21.6]}
8... Nd5 {[%clk 0:02:53.6]} 9. O-O {[%clk 0:02:21.3]} 9... N5b6 {[%clk
0:02:52.9]} 10. Bd3 {[%clk 0:02:20.7]} 10... Qc7 {[%clk 0:02:51.9]} 11. Na3
{[%clk 0:02:20.3]} 11... a6 {[%clk 0:02:47.8]} 12. Re1 {[%clk 0:02:19.9]} 12...
Nd5 {[%clk 0:02:45.6]} 13. Nc4 {[%clk 0:02:19.2]} 13... b5 {[%clk 0:02:44.3]}
14. Nd6+ {[%clk 0:02:19.2]} 14... Bxd6 {[%clk 0:02:44.1]} 15. exd6 {[%clk
0:02:19.4]} 15... Qxd6 {[%clk 0:02:44.6]} 16. Be4 {[%clk 0:02:18.7]} 16... N7f6
{[%clk 0:02:36]} 17. Bc2 {[%clk 0:02:18.2]} 17... O-O {[%clk 0:02:34.5]} 18. Ne5
{[%clk 0:02:18.3]} 18... Bb7 {[%clk 0:02:31.1]} 19. Bg5 {[%clk 0:02:17.4]} 19...
h6 {[%clk 0:02:28.6]} 20. Bxf6 {[%clk 0:02:14.9]} 20... Nxf6 {[%clk 0:02:28.2]}
21. Rad1 {[%clk 0:02:14.6]} 21... Qc7 {[%clk 0:02:26.7]} 22. Rd3 {[%clk
0:02:01.6]} 22... Rad8 {[%clk 0:02:22.9]} 23. Rg3 {[%clk 0:02:01.3]} 23... Rd5
{[%clk 0:02:22.5]} 24. Qe3 {[%clk 0:01:50.6]} 24... Kh8 {[%clk 0:02:15.9]} 25.
Rh3 {[%clk 0:01:46.2]} 25... Rxe5 {[%clk 0:01:42.1]} 26. Qxe5 {[%clk 0:01:45.2]}
26... Qe7 {[%clk 0:01:31.5]} 27. Rd1 {[%clk 0:01:41.2]} 27... Nd5 {[%clk
0:01:22.2]} 28. Rxh6+ {[%clk 0:01:39.7]} 28... Kg8 {[%clk 0:01:20.6]} 29. Bh7+
{[%clk 0:01:39.9]} 29... Kh8 {[%clk 0:01:19.9]} 30. Bg6+ {[%clk 0:01:40.8]}
30... Kg8 {[%clk 0:01:20.2]} 31. Rh8+ {[%clk 0:01:41]} 31... Kxh8 {[%clk
0:01:20.2]} 32. Qh5+ {[%clk 0:01:41.6]} 32... Kg8 {[%clk 0:01:20.9]} 33. Qh7#
{[%clk 0:01:42.5]} 1-0

[Event "*** SCC Grand Prix: Titled Tuesday Blitz"]
[Site "Chess.com"]
[Date "2020.09.08"]
[Round "6"]
[White "laboratorio25"]
[Black "Yoshikrov"]
[Result "1-0"]
[WhiteElo "2402"]
[BlackElo "2109"]
[TimeControl "180+1"]
[EndTime "11:04:57 PDT"]
[Termination "laboratorio25 won by resignation"]

1. e4 {[%clk 0:03:00.9]} 1... c5 {[%clk 0:02:59.9]} 2. Nf3 {[%clk 0:03:01.1]}
2... d6 {[%clk 0:02:59.5]} 3. d4 {[%clk 0:03:01.6]} 3... cxd4 {[%clk 0:02:59.7]}
4. Nxd4 {[%clk 0:03:02.5]} 4... Nf6 {[%clk 0:02:59.9]} 5. Nc3 {[%clk 0:03:02.6]}
5... a6 {[%clk 0:03:00.2]} 6. Be3 {[%clk 0:03:02.6]} 6... e5 {[%clk 0:02:59.8]}
7. Nb3 {[%clk 0:03:02.2]} 7... Be6 {[%clk 0:03:00.1]} 8. f3 {[%clk 0:03:02]}
8... h5 {[%clk 0:03:00.1]} 9. Qd2 {[%clk 0:03:01.1]} 9... Nbd7 {[%clk
0:03:00.4]} 10. O-O-O {[%clk 0:03:01.1]} 10... b5 {[%clk 0:03:00.8]} 11. Bd3
{[%clk 0:03:01]} 11... Nb6 {[%clk 0:03:01]} 12. Kb1 {[%clk 0:02:59.7]} 12... Rc8
{[%clk 0:02:56.9]} 13. g3 {[%clk 0:02:58.6]} 13... Nc4 {[%clk 0:02:49.1]} 14.
Qe2 {[%clk 0:02:56.1]} 14... Nxe3 {[%clk 0:02:46.5]} 15. Qxe3 {[%clk 0:02:57]}
15... Qc7 {[%clk 0:02:34.3]} 16. f4 {[%clk 0:02:51.2]} 16... Bc4 {[%clk
0:02:28]} 17. fxe5 {[%clk 0:02:49.1]} 17... dxe5 {[%clk 0:02:26.7]} 18. Nd5
{[%clk 0:02:41.1]} 18... Nxd5 {[%clk 0:02:13.3]} 19. exd5 {[%clk 0:02:40.6]}
19... Bxd3 {[%clk 0:02:13.5]} 20. Rxd3 {[%clk 0:02:24.2]} 20... Bd6 {[%clk
0:01:55.9]} 21. Rc3 {[%clk 0:02:21.5]} 21... Qd7 {[%clk 0:01:40.6]} 22. Rxc8+
{[%clk 0:02:20.2]} 22... Qxc8 {[%clk 0:01:40.8]} 23. Qb6 {[%clk 0:02:14.7]}
23... Qc7 {[%clk 0:01:25.9]} 24. Qxa6 {[%clk 0:02:08.7]} 24... O-O {[%clk
0:01:26.1]} 25. Qxb5 {[%clk 0:02:08.1]} 25... Rb8 {[%clk 0:01:26.3]} 26. Qd3
{[%clk 0:02:07.5]} 26... Rb4 {[%clk 0:01:11.8]} 27. c3 {[%clk 0:02:02.7]} 27...
Rg4 {[%clk 0:01:06.9]} 28. Rc1 {[%clk 0:01:57.5]} 28... h4 {[%clk 0:01:06.1]}
29. c4 {[%clk 0:01:50.3]} 29... hxg3 {[%clk 0:01:05.1]} 30. hxg3 {[%clk
0:01:50]} 30... e4 {[%clk 0:01:05.4]} 31. Qe2 {[%clk 0:01:49.6]} 31... Bxg3
{[%clk 0:00:59.8]} 32. Qxg4 {[%clk 0:01:48.7]} 1-0